fUSD/lending_fUSD_20260109
["ID","MTS","AMOUNT","RATE_DAILY","PERIOD"]
[401094437,1767921041888,-500.0,0.00017973,2]
[401094438,1767921041897,-500.0,0.00017973,2]
[401094439,1767921041906,-500.0,0.00017973,2]
[401094440,1767921041915,-500.0,0.00017973,2]
[401094441,1767921041924,-500.0,0.00017973,2]
[401094442,1767921041934,-500.0,0.00017973,2]
[401094443,1767921041943,-500.0,0.00017973,2]
[401094444,1767921041952,-507.55666009,0.00017973,2]
[401094445,1767921041961,-500.10308709,0.00017973,2]
[401094446,1767921041970,-500.0,0.00017973,2]
[401094447,1767921042292,-160.63254357,0.00017973,2]
[401094448,1767921042302,-500.0,0.00017973,2]
[401094449,1767921042311,-500.0,0.00017973,2]
[401094450,1767921042321,-500.0,0.00017973,2]
[401094451,1767921042330,-308.13156598,0.00017973,2]
[401094452,1767921042339,-166.02338612,0.00017973,2]
[401094453,1767921042349,-504.86489793,0.00017973,2]
[401094454,1767921042358,-500.0,0.00017973,2]
[401094455,1767921042367,-500.0,0.00017973,2]
[401094456,1767921042377,-500.0,0.00017973,2]
[401094457,1767921042385,-165.2927509,0.00017973,2]
[401094458,1767921042394,-283.37917692,0.00017973,2]
[401094459,1767921042403,-500.14950578,0.00017973,2]
[401094460,1767921042412,-500.2261679,0.00017973,2]
[401094461,1767921042421,-500.0,0.00017973,2]
[401094462,1767921042430,-375.36556908,0.00017973,2]
[401094463,1767921042439,-500.0,0.00017973,2]
[401094464,1767921042448,-500.0,0.00017973,2]
[401094465,1767921042457,-169.07465729,0.00017973,2]
[401094466,1767921042467,-500.0,0.00017973,2]
[401094467,1767921042476,-150.0,0.00017973,2]
[401094468,1767921042485,-219.35995196,0.00017982,2]
[401094469,1767921042494,-205.31387654,0.0001799,2]
[401094470,1767921042503,-205.31387654,0.0001799,2]
[401094471,1767921042513,-164.72,0.0001799,2]
[401094472,1767921042522,-5800.0,0.00017992,2]
[401094473,1767921042532,-3404.0,0.00017992,2]
[401094474,1767921042541,-151.0,0.00017997,2]
[401094475,1767921042551,-1000.0,0.00017997,2]
[401094476,1767921042561,-500.0,0.00017998,2]
[401094477,1767921042570,-300.0,0.00017999,2]
[401094478,1767921042579,-1006.1979,0.00017999,2]
[401094479,1767921042588,-500.0,0.00017999,2]
[401094480,1767921042598,-500.0,0.00017999,2]
[401094481,1767921042607,-500.0,0.00017999,2]
[401094482,1767921042616,-500.0,0.00017999,2]
[401094483,1767921042625,-500.0,0.00017999,2]
[401094484,1767921042634,-500.0,0.00017999,2]
[401094485,1767921042643,-579.28,0.00017999,2]
[401094486,1767921042653,-500.0,0.00017999,2]
[401094487,1767921042662,-500.0,0.00017999,2]
[401094488,1767921042671,-500.0,0.00017999,2]
[401094489,1767921042681,-500.0,0.00017999,2]
[401094490,1767921042691,-500.0,0.00017999,2]
[401094491,1767921042700,-500.0,0.00017999,2]
[401094492,1767921042709,-300.0,0.00017999,2]
[401094493,1767921042718,-300.0,0.00017999,2]
[401094494,1767921042727,-222.98699471,0.00017999,2]
[401094495,1767921042737,-666.0,0.00017999,2]
[401094497,1767921042747,-500.0,0.00017999,2]
[401094499,1767921042756,-500.0,0.00017999,2]
[401094501,1767921042766,-500.0,0.00017999,2]
[401094503,1767921042775,-500.0,0.00017999,2]
[401094504,1767921042785,-500.0,0.00017999,2]
[401094505,1767921042794,-500.0,0.00017999,2]
[401094506,1767921042803,-500.0,0.00017999,2]
[401094507,1767921042813,-500.0,0.00017999,2]
[401094508,1767921042822,-500.0,0.00017999,2]
[401094509,1767921042831,-500.0,0.00017999,2]
[401094511,1767921042843,-500.0,0.00017999,2]
[401094513,1767921042852,-500.0,0.00017999,2]
[401094515,1767921042861,-359.94812993,0.00017999,2]
[401094516,1767921042870,-300.0,0.00017999,2]
[401094517,1767921042880,-666.0,0.00017999,2]
[401094518,1767921042889,-300.0,0.00017999,2]
[401094519,1767921042899,-542.95517596,0.00017999,2]
[401094520,1767921042908,-150.0,0.00017999,2]
[401094521,1767921042918,-150.0,0.00017999,2]
[401094522,1767921042927,-300.0,0.00017999,2]
[401094523,1767921042936,-666.0,0.00017999,2]
[401094524,1767921042945,-2779634.19050025,0.00018,2]
[401094526,1767921043588,-500.0,0.00013988,2]
[401094527,1767921043598,-500.0,0.00016438,2]
[401094528,1767921043608,-500.0,0.00016438,2]
[401094529,1767921043618,-27163.11225537,0.00018,2]
[401094530,1767921043630,-3913.39224889,0.00018,2]
[401094531,1767921043747,-456.7592135,0.00016438,2]
[401094532,1767921044450,-204.08963953,0.00013981,2]
[401094533,1767921044460,-43.2407865,0.00016438,2]
[401094534,1767921044469,-500.0,0.00016438,2]
[401094535,1767921044478,-500.0,0.00016438,2]
[401094536,1767921044487,-500.0,0.00016438,2]
[401094537,1767921044496,-500.0,0.00016438,2]
[401094538,1767921044505,-500.0,0.00016438,2]
[401094539,1767921044516,-500.0,0.00016438,2]
[401094540,1767921044525,-500.0,0.00016438,2]
[401094541,1767921044538,-500.0,0.00016438,2]
[401094542,1767921044548,-500.0,0.00016438,2]
[401094543,1767921044558,-500.0,0.00016438,2]
[401094544,1767921044567,-500.0,0.00016438,2]
[401094545,1767921044577,-500.0,0.00016438,2]
[401094546,1767921044586,-376.88722056,0.00016438,2]
[401094547,1767921044595,-500.0,0.00016438,2]
[401094548,1767921044604,-500.0,0.00016438,2]
[401094549,1767921044614,-152.0,0.00017972,2]
[401094550,1767921044623,-5628.78235341,0.00018,2]
[401094551,1767921045639,-12.21128732,0.00018,2]
[401094555,1767921045955,-1530.69277689,0.00018,2]
[401094556,1767921046012,-342.35911253,0.00018,2]
[401094557,1767921046107,-908.16778821,0.00018,2]
[401094558,1767921046118,-1188.17087136,0.00018,2]
[401094559,1767921046128,-1000.0,0.00018,2]
[401094560,1767921046138,-1000.0,0.00018,2]
[401094561,1767921046147,-776.56725191,0.00018,2]
[401094562,1767921046157,-500.0,0.00018,2]
[401094563,1767921046167,-500.0,0.00018,2]
[401094564,1767921046179,-500.0,0.00018,2]
[401094565,1767921046189,-500.0,0.00018,2]
[401094566,1767921046200,-500.0,0.00018,2]
[401094567,1767921046209,-500.0,0.00018,2]
[401094568,1767921046219,-500.0,0.00018,2]
[401094569,1767921046227,-500.0,0.00018,2]
[401094570,1767921046238,-500.0,0.00018,2]
[401094571,1767921046249,-150.23705354,0.00018,2]
[401094572,1767921046261,-349.76294646,0.00018,2]
[401094573,1767921046273,-500.0,0.00018,2]
[401094574,1767921046284,-243.81380579,0.00018,2]
[401094575,1767921046302,-256.18619421,0.00018,2]
[401094576,1767921046311,-500.0,0.00018,2]
[401094577,1767921046320,-500.0,0.00018,2]
[401094578,1767921046330,-500.0,0.00018,2]
[401094579,1767921046339,-500.0,0.00018,2]
[401094580,1767921046348,-500.0,0.00018,2]
[401094581,1767921046357,-217.06304743,0.00018,2]
[401094582,1767921174610,166.07911574,0.000226,120]
[401094583,1767921175690,249.11867362,0.000226,120]
[401094585,1767921969513,249.61688319,0.00018,120]
[401094586,1767921971880,166.41125546,0.000198,120]
[401094587,1767922010111,-187.52772907,0.00013268,2]
[401094597,1767922205771,178.2977737,0.000189,120]
[401094625,1767922232554,-1238.93284746,0.0001324,2]
[401094627,1767922232565,-346.84803172,0.0001324,2]
[401094630,1767922232576,-266.63912082,0.0001324,2]
[401094632,1767922232587,-306.84198022,0.00013254,2]
[401094634,1767922232595,-580.48227093,0.00013268,2]
[401094636,1767922232604,-419.16660568,0.00013653,2]
[401094638,1767922232615,-173.38339432,0.00013653,2]
[401094640,1767922232625,-859.63,0.00013661,2]
[401094642,1767922232634,-1200.0,0.00013698,2]
[401094644,1767922232643,-277.0,0.00013698,2]
[401094646,1767922232654,-1095.68,0.00013699,2]
[401094648,1767922232663,-456.42433564,0.00013699,2]
[401094650,1767922232674,-3383.37566436,0.00013699,2]
[401094652,1767922232683,-500.0,0.00013705,2]
[401094654,1767922232692,-500.0,0.0001376,2]
[401094655,1767922232702,-7418.61894173,0.00013778,2]
[401094656,1767922232720,-151.0,0.00013785,2]
[401094657,1767922232729,-150.0,0.00013787,2]
[401094658,1767922232738,-360.42405583,0.00013788,2]
[401094659,1767922232749,-887.39942916,0.00013788,2]
[401094660,1767922232760,-6530.29967932,0.00013788,2]
[401094661,1767922232774,-1060.77904205,0.00013788,2]
[401094662,1767922232788,-3247.04522264,0.00013788,2]
[401094663,1767922232805,-2740.89999996,0.00013788,2]
[401094664,1767922232818,-620.28830046,0.00013788,2]
[401094665,1767922232839,-556.64674786,0.00013788,2]
[401094666,1767922232850,-344.17171453,0.00013788,2]
[401094667,1767922232862,-614.3744897,0.00013788,2]
[401094678,1767922238089,-568.40474227,0.00013788,2]
[401094680,1767922238101,-399.95954764,0.00013788,2]
[401094683,1767922238126,-5888.10906439,0.00013788,2]
[401094684,1767922238139,-2031.84582216,0.00013788,2]
[401094685,1767922238150,-583.25931195,0.00013788,2]
[401094686,1767922238170,-20908.2524505,0.00013788,2]
[401094687,1767922238182,-510.0107198,0.00013788,2]
[401094688,1767922238214,-1949.29659349,0.00013788,2]
[401094689,1767922238226,-18429.02484211,0.00013788,2]
[401094690,1767922238260,-519.32820035,0.00013788,2]
[401094691,1767922238408,-620.0000001,0.00013788,2]
[401094850,1767922240207,-460.51453668,0.00013788,2]
[401094852,1767922240218,-532.9787975,0.00013788,2]
[401094864,1767922240319,-768.71294345,0.00013788,2]
[401094866,1767922240331,-928867.9737461,0.00013788,2]
[401094868,1767922240340,-478.45863703,0.00013815,2]
[401094870,1767922240350,-500.0,0.00013887,2]
[401094872,1767922240359,-500.0,0.00013887,2]
[401094874,1767922240368,-500.0,0.00013887,2]
[401094876,1767922240378,-500.0,0.00013887,2]
[401094878,1767922240387,-514.60237929,0.00013887,2]
[401094880,1767922240397,-500.0,0.00013887,2]
[401094882,1767922240407,-733.569,0.00013887,2]
[401094884,1767922240417,-287.0925,0.00013887,2]
[401094886,1767922240427,-33580.3823,0.00013888,2]
[401094888,1767922240436,-3294.70728179,0.00013888,2]
[401094891,1767922240446,-5373.93014289,0.00013888,2]
[401094893,1767922240455,-197.55123833,0.00013888,2]
[401094895,1767922240465,-12604.74,0.00013907,2]
[401094897,1767922240474,-7797.17272226,0.00013941,2]
[401094899,1767922240484,-500.0,0.0001398,2]
[401094901,1767922240493,-500.0,0.0001398,2]
[401094903,1767922240504,-200.0,0.0001398,2]
[401094905,1767922240517,-500.0,0.0001398,2]
[401094907,1767922240533,-500.0,0.0001398,2]
[401094909,1767922240544,-500.0,0.0001398,2]
[401094911,1767922240554,-500.0,0.0001398,2]
[401094913,1767922240568,-500.0,0.0001398,2]
[401094915,1767922240578,-500.0,0.0001398,2]
[401094917,1767922240589,-500.0,0.0001398,2]
[401094919,1767922240599,-500.0,0.0001398,2]
[401094921,1767922240608,-500.0,0.0001398,2]
[401094923,1767922240617,-433.68547581,0.0001398,2]
[401094925,1767922240627,-200.0,0.0001398,2]
[401094927,1767922240636,-500.0,0.0001398,2]
[401094929,1767922240645,-151.0,0.0001398,2]
[401094932,1767922240655,-151.0,0.0001398,2]
[401094934,1767922240664,-151.0,0.0001398,2]
[401094936,1767922240674,-151.0,0.0001398,2]
[401094938,1767922240683,-151.0,0.0001398,2]
[401094940,1767922240692,-151.0,0.0001398,2]
[401094942,1767922240702,-151.0,0.0001398,2]
[401094944,1767922240711,-151.0,0.0001398,2]
[401094946,1767922240720,-151.0,0.0001398,2]
[401094948,1767922240730,-151.0,0.0001398,2]
[401094950,1767922240739,-151.0,0.0001398,2]
[401094952,1767922240748,-151.0,0.0001398,2]
[401094954,1767922240757,-500.0,0.00013987,2]
[401094956,1767922240766,-500.0,0.00013987,2]
[401094958,1767922240775,-500.0,0.00013987,2]
[401094960,1767922240788,-500.0,0.00013987,2]
[401094962,1767922240799,-500.0,0.00013987,2]
[401094964,1767922240809,-500.0,0.00013987,2]
[401094966,1767922240819,-500.0,0.00013987,2]
[401094968,1767922240828,-500.0,0.00013987,2]
[401094970,1767922240838,-500.0,0.00013987,2]
[401094972,1767922240847,-500.0,0.00013987,2]
[401094974,1767922240858,-500.0,0.00013987,2]
[401094976,1767922240867,-500.0,0.00013987,2]
[401094979,1767922240878,-543.92142725,0.00013987,2]
[401094981,1767922240888,-500.0,0.00013987,2]
[401094983,1767922240898,-500.0,0.00013987,2]
[401094985,1767922240908,-500.0,0.00013987,2]
[401094987,1767922240917,-500.0,0.00013987,2]
[401094989,1767922240927,-330.37464563,0.00013987,2]
[401094991,1767922240936,-500.0,0.00013987,2]
[401094993,1767922240945,-500.0,0.00013987,2]
[401094995,1767922240955,-500.0,0.00013987,2]
[401094997,1767922240964,-500.0,0.00013987,2]
[401094999,1767922240974,-500.0,0.00013987,2]
[401095001,1767922240983,-500.0,0.00013987,2]
[401095003,1767922240992,-526.250495,0.00013987,2]
[401095005,1767922241001,-500.0,0.00013987,2]
[401095007,1767922241011,-500.0,0.00013987,2]
[401095009,1767922241022,-500.0,0.00013987,2]
[401095011,1767922241031,-363.73176274,0.00013987,2]
[401095013,1767922241041,-500.0,0.00013988,2]
[401095015,1767922241050,-500.0,0.00013988,2]
[401095017,1767922241060,-500.0,0.00013988,2]
[401095019,1767922241069,-500.0,0.00013988,2]
[401095021,1767922241085,-1000.0,0.00013989,2]
[401095023,1767922241096,-500.0,0.00013989,2]
[401095025,1767922241106,-500.0,0.00014088,2]
[401095027,1767922241115,-500.0,0.00014088,2]
[401095029,1767922241125,-500.0,0.00014088,2]
[401095031,1767922241134,-500.0,0.00014088,2]
[401095033,1767922241143,-500.0,0.00014088,2]
[401095035,1767922241152,-500.0,0.00014088,2]
[401095037,1767922241162,-502.25127096,0.00014088,2]
[401095039,1767922241171,-3294.70728179,0.00014334,2]
[401095041,1767922241180,-5373.93014284,0.00014334,2]
[401095043,1767922241189,-3839.8,0.00014384,2]
[401095045,1767922241198,-203.3369726,0.00014528,2]
[401095047,1767922241222,-300.0,0.00014565,2]
[401095050,1767922241232,-2500.0,0.00014565,2]
[401095052,1767922241241,-2500.0,0.00014565,2]
[401095054,1767922241251,-2500.0,0.00014565,2]
[401095056,1767922241260,-2558.65419202,0.00014565,2]
[401095058,1767922241270,-318.14310762,0.00014595,2]
[401095060,1767922241279,-250.0,0.00014595,2]
[401095062,1767922241288,-250.0,0.00014595,2]
[401095064,1767922241297,-501.25165524,0.00014763,2]
[401095066,1767922241308,-501.17648911,0.00014763,2]
[401095068,1767922241317,-500.0,0.00014763,2]
[401095069,1767922241326,-502.40698527,0.00014763,2]
[401095070,1767922241336,-500.0,0.00014763,2]
[401095071,1767922241347,-500.0,0.00014763,2]
[401095072,1767922241356,-502.24390153,0.00014763,2]
[401095073,1767922241365,-500.0,0.00014763,2]
[401095074,1767922241374,-500.0,0.00014763,2]
[401095075,1767922241383,-501.06710829,0.00014763,2]
[401095077,1767922241394,-500.0,0.00014763,2]
[401095078,1767922241404,-501.53286712,0.00014763,2]
[401095079,1767922241414,-500.0,0.00014763,2]
[401095080,1767922241424,-500.0,0.00014763,2]
[401095081,1767922241434,-3294.70728179,0.0001478,2]
[401095082,1767922241443,-5373.93014284,0.0001478,2]
[401095083,1767922241453,-255.0,0.00014904,2]
[401095084,1767922241462,-716.75,0.00014987,2]
[401095085,1767922241471,-206.86777706,0.0001499,2]
[401095086,1767922241480,-5014.92,0.00014999,2]
[401095087,1767922241490,-2045.26348643,0.00015,2]
[401095088,1767922241499,-1207.91998562,0.00015,2]
[401095089,1767922241509,-16553.60939929,0.00015,2]
[401095090,1767922241521,-22966.4777501,0.00015,2]
[401095091,1767922241537,-150.0,0.00015018,2]
[401095092,1767922241548,-1680.0,0.00015067,2]
[401095093,1767922241557,-3839.8,0.00015068,2]
[401095094,1767922241577,-151.0,0.00015113,2]
[401095095,1767922241586,-151.0,0.00015113,2]
[401095096,1767922241596,-151.0,0.00015117,2]
[401095097,1767922241605,-151.0,0.00015117,2]
[401095098,1767922241614,-500.0,0.00015187,2]
[401095099,1767922241623,-3294.70728179,0.00015225,2]
[401095100,1767922241634,-5373.93014284,0.00015225,2]
[401095101,1767922241643,-1000.0,0.0001531,2]
[401095102,1767922241660,-508.40118338,0.0001531,2]
[401095103,1767922241676,-500.0,0.0001531,2]
[401095104,1767922241685,-1000.0,0.0001531,2]
[401095105,1767922241695,-1000.0,0.0001531,2]
[401095106,1767922241705,-599.35467002,0.0001531,2]
[401095107,1767922242055,-705.56277415,0.0001531,2]
[401095108,1767922242066,-592.55,0.00015359,2]
[401095109,1767922242075,-507.02410886,0.000154,2]
[401095110,1767922242084,-3294.70728179,0.00015671,2]
[401095111,1767922242093,-5373.93014284,0.00015671,2]
[401095112,1767922242103,-3839.8,0.00015753,2]
[401095113,1767922242114,-50415.04,0.00015829,2]
[401095114,1767922242123,-663.03940033,0.00015858,2]
[401095115,1767922242134,-1500.0,0.00015858,2]
[401095116,1767922242143,-11716.16929184,0.00016,2]
[401095117,1767922242153,-900.0,0.00016082,2]
[401095118,1767922242162,-1200.0,0.00016082,2]
[401095119,1767922242171,-3000.0,0.00016082,2]
[401095120,1767922242180,-3294.70728179,0.00016117,2]
[401095121,1767922242189,-5373.93014284,0.00016117,2]
[401095122,1767922242199,-433.0,0.00016117,2]
[401095123,1767922242208,-197.55123833,0.00016134,2]
[401095124,1767922242217,-323.67,0.00016185,2]
[401095125,1767922242226,-151.0,0.00016197,2]
[401095126,1767922242235,-141671.01773688,0.000162,5]
[401095127,1767922242244,-3240.0,0.00016263,2]
[401095128,1767922242253,-200.0,0.0001634,2]
[401095129,1767922242262,-500.0,0.00016406,2]
[401095130,1767922242272,-500.0,0.00016438,2]
[401095131,1767922242281,-486.32080229,0.00016438,2]
[401095132,1767922242290,-784.3,0.00016438,2]
[401095133,1767922242299,-801.86347734,0.00016438,2]
[401095134,1767922242309,-3839.8,0.00016438,2]
[401095135,1767922242319,-250.0,0.00016547,2]
[401095136,1767922242328,-3294.70728179,0.00016563,2]
[401095137,1767922242338,-5373.93014284,0.00016563,2]
[401095138,1767922242347,-2351.0,0.00016574,2]
[401095139,1767922242356,-504.0,0.0001663,2]
[401095140,1767922242365,-784.3,0.00016712,2]
[401095141,1767922242374,-207.4,0.00016719,2]
[401095142,1767922242386,-16737.81731975,0.00016777,2]
[401095143,1767922242395,-469.50438451,0.00016786,2]
[401095144,1767922242405,-157.78803463,0.00016831,2]
[401095145,1767922242416,-364.61696962,0.00016889,2]
[401095146,1767922242426,-176.7589832,0.00016983,2]
[401095147,1767922242435,-784.3,0.00016986,2]
[401095148,1767922242444,-150.0,0.00016986,2]
[401095149,1767922242454,-721091.92,0.00016986,2]
[401095150,1767922242464,-1998.22747762,0.00016989,2]
[401095151,1767922242473,-250.0,0.00017,2]
[401095152,1767922242483,-160.0,0.00017,2]
[401095153,1767922242492,-419.81,0.00017,2]
[401095154,1767922242502,-3294.70728179,0.00017008,2]
[401095155,1767922242512,-5373.93014284,0.00017008,2]
[401095156,1767922242521,-592.55,0.00017066,2]
[401095157,1767922242530,-322.6107,0.00017099,2]
[401095158,1767922242540,-151.0,0.00017099,2]
[401095159,1767922242550,-500.0,0.00017099,2]
[401095160,1767922242559,-1500.0,0.00017099,2]
[401095161,1767922242570,-1500.0,0.00017099,2]
[401095162,1767922242579,-500.0,0.00017099,2]
[401095163,1767922242592,-1500.0,0.00017099,2]
[401095164,1767922242605,-500.0,0.00017099,2]
[401095165,1767922242614,-1500.0,0.00017099,2]
[401095166,1767922242623,-500.0,0.00017099,2]
[401095167,1767922242633,-1500.0,0.00017099,2]
[401095168,1767922242642,-500.0,0.00017099,2]
[401095169,1767922242651,-1500.0,0.00017099,2]
[401095170,1767922242660,-500.0,0.00017099,2]
[401095171,1767922242669,-500.0,0.00017099,2]
[401095172,1767922242679,-1500.0,0.00017099,2]
[401095173,1767922242689,-500.0,0.00017099,2]
[401095174,1767922242698,-500.0,0.00017099,2]
[401095175,1767922242707,-500.0,0.00017099,2]
[401095176,1767922242718,-500.0,0.00017099,2]
[401095177,1767922242727,-245.47500971,0.00017099,2]
[401095178,1767922242738,-553.64373807,0.00017099,2]
[401095179,1767922242747,-1444.70874786,0.00017099,2]
[401095180,1767922242758,-2000.0,0.00017099,2]
[401095181,1767922242767,-2000.0,0.00017099,2]
[401095182,1767922242780,-1500.0,0.00017099,2]
[401095183,1767922242789,-620.0,0.00017099,2]
[401095184,1767922242798,-300.0,0.00017099,2]
[401095185,1767922242807,-500.0,0.00017099,2]
[401095186,1767922242818,-500.0,0.00017099,2]
[401095187,1767922242828,-500.0,0.00017099,2]
[401095188,1767922242838,-500.0,0.00017099,2]
[401095189,1767922242849,-500.0,0.00017099,2]
[401095190,1767922242858,-578.20924308,0.00017099,2]
[401095191,1767922242868,-250.0,0.00017099,2]
[401095192,1767922242878,-500.0,0.00017099,2]
[401095193,1767922242888,-500.0,0.00017099,2]
[401095194,1767922242897,-500.0,0.00017099,2]
[401095195,1767922242907,-500.0,0.00017099,2]
[401095196,1767922242918,-500.0,0.00017099,2]
[401095197,1767922242928,-500.0,0.00017099,2]
[401095198,1767922242938,-456.80064685,0.00017099,2]
[401095199,1767922242947,-200.0,0.00017174,2]
[401095200,1767922242958,-1246.95554892,0.00017178,2]
[401095201,1767922242968,-3990.02689146,0.00017178,2]
[401095202,1767922242982,-2672.17298913,0.00017178,2]
[401095204,1767922242992,-784.3,0.0001726,2]
[401095205,1767922243002,-364.6169696,0.00017395,2]
[401095206,1767922243012,-1000.0,0.000174,2]
[401095207,1767922243022,-736.0,0.00017413,2]
[401095208,1767922243032,-900.0,0.00017452,7]
[401095209,1767922243041,-1200.0,0.00017452,7]
[401095210,1767922243052,-3000.0,0.00017452,7]
[401095211,1767922243063,-3294.70728179,0.00017454,2]
[401095212,1767922243072,-5373.93014284,0.00017454,2]
[401095213,1767922243082,-1600.92502348,0.000175,2]
[401095214,1767922243091,-784.3,0.00017534,2]
[401095215,1767922243101,-1000.0,0.000176,2]
[401095216,1767922243110,-4879.0,0.000176,3]
[401095217,1767922243120,-4799.0,0.0001763,2]
[401095218,1767922243129,-1722.03318206,0.0001764,2]
[401095219,1767922243139,-151.0,0.00017647,2]
[401095220,1767922243149,-574.12855637,0.00017647,2]
[401095221,1767922243159,-779.82140531,0.000177,2]
[401095222,1767922243170,-4799.0,0.00017715,2]
[401095223,1767922243181,-500.0,0.00017782,2]
[401095224,1767922243191,-500.0,0.00017782,2]
[401095225,1767922243200,-245959.7614317,0.00017783,2]
[401095226,1767922243210,-23587.6723446,0.00017783,2]
[401095227,1767922243219,-12579.677077,0.00017783,2]
[401095228,1767922243230,-2072.3627422,0.00017783,2]
[401095229,1767922243240,-165378.8185395,0.00017783,2]
[401095230,1767922243250,-2000.0,0.000178,2]
[401095231,1767922243259,-80005.69031789,0.000178,2]
[401095232,1767922243269,-1000.0,0.000178,2]
[401095233,1767922243279,-784.3,0.00017808,2]
[401095234,1767922243289,-997.31931,0.0001782,2]
[401095235,1767922243300,-997.31931,0.0001782,2]
[401095236,1767922243309,-997.31931,0.0001782,2]
[401095237,1767922243319,-997.31931,0.0001782,2]
[401095238,1767922243329,-2000.0,0.00017856,2]
[401095239,1767922243339,-200.0,0.00017856,2]
[401095240,1767922243349,-150.0,0.00017877,2]
[401095241,1767922243359,-500.0,0.00017899,2]
[401095242,1767922243369,-10000.0,0.000179,2]
[401095243,1767922243380,-3294.70728179,0.000179,2]
[401095244,1767922243390,-5373.93014284,0.000179,2]
[401095245,1767922243400,-364.6169696,0.000179,2]
[401095246,1767922243410,-7900.6256861,0.000179,3]
[401095247,1767922243421,-2803.2286463,0.000179,2]
[401095248,1767922243431,-5535.0,0.000179,5]
[401095249,1767922243440,-228.8496035,0.000179,2]
[401095250,1767922243449,-500.0,0.000179,2]
[401095251,1767922243458,-500.0,0.000179,2]
[401095252,1767922243470,-500.0,0.000179,2]
[401095253,1767922243479,-500.0,0.000179,2]
[401095254,1767922243488,-500.0,0.000179,2]
[401095255,1767922243497,-500.0,0.000179,2]
[401095256,1767922243507,-500.0,0.000179,2]
[401095257,1767922243516,-500.0,0.000179,2]
[401095258,1767922243526,-500.0,0.000179,2]
[401095259,1767922243535,-500.0,0.000179,2]
[401095260,1767922243545,-500.0,0.000179,2]
[401095261,1767922243554,-500.0,0.000179,2]
[401095262,1767922243563,-500.0,0.000179,2]
[401095263,1767922243574,-500.0,0.000179,2]
[401095264,1767922243583,-500.0,0.000179,2]
[401095265,1767922243592,-500.0,0.000179,2]
[401095266,1767922243602,-500.0,0.000179,2]
[401095267,1767922243611,-500.0,0.000179,2]
[401095268,1767922243620,-500.0,0.000179,2]
[401095269,1767922243630,-500.0,0.000179,2]
[401095270,1767922243640,-11025.0,0.000179,2]
[401095271,1767922243649,-5800.0,0.00017941,2]
[401095272,1767922243658,-5800.0,0.00017949,2]
[401095273,1767922243668,-5800.0,0.00017958,2]
[401095274,1767922243678,-5800.0,0.00017966,2]
[401095276,1767922243687,-169.13255574,0.00017972,2]
[401095277,1767922243696,-500.0,0.00017973,2]
[401095278,1767922243707,-500.0,0.00017973,2]
[401095279,1767922243717,-622.77774854,0.00017973,2]
[401095280,1767922243727,-500.0,0.00017973,2]
[401095281,1767922243737,-372.49405725,0.00017973,2]
[401095282,1767922243751,-500.0,0.00017973,2]
[401095283,1767922243760,-178.99834803,0.00017973,2]
[401095284,1767922243770,-504.86489793,0.00017973,2]
[401095285,1767922243780,-166.02338612,0.00017973,2]
[401095286,1767922243790,-500.0,0.00017973,2]
[401095287,1767922243799,-507.55666009,0.00017973,2]
[401095288,1767922243809,-165.2927509,0.00017973,2]
[401095289,1767922243822,-308.13156598,0.00017973,2]